fUSD/lending_fUSD_20250208
["ID","MTS","AMOUNT","RATE_DAILY","PERIOD"]
[352350079,1739052635329,-500.0,0.00010408,2]
[352350080,1739052635338,-500.0,0.00010408,2]
[352350081,1739052635347,-863.11,0.00010408,2]
[352350082,1739052635356,-500.0,0.00010408,2]
[352350083,1739052635365,-632.74,0.00010408,2]
[352350084,1739052635375,-500.0,0.00010408,2]
[352350085,1739052635385,-623.51,0.00010408,2]
[352350086,1739052635394,-500.0,0.00010408,2]
[352350087,1739052635403,-500.0,0.00010408,2]
[352350088,1739052635412,-734.53,0.00010408,2]
[352350089,1739052635421,-500.0,0.00010408,2]
[352350090,1739052635430,-500.0,0.00010408,2]
[352350091,1739052635440,-500.0,0.00010408,2]
[352350092,1739052635450,-610.86,0.00010408,2]
[352350093,1739052635460,-532.6,0.00010408,2]
[352350094,1739052635469,-500.0,0.00010408,2]
[352350095,1739052635480,-500.0,0.00010408,2]
[352350096,1739052635490,-500.0,0.00010408,2]
[352350097,1739052635710,-500.0,0.00010408,2]
[352350098,1739052635720,-500.0,0.00010408,2]
[352350099,1739052635730,-500.0,0.00010408,2]
[352350100,1739052635741,-679.9,0.00010408,2]
[352350101,1739052635750,-1071.38,0.00010408,2]
[352350102,1739052635760,-570.32,0.00010408,2]
[352350103,1739052635770,-500.0,0.00010408,2]
[352350104,1739052635783,-500.0,0.00010408,2]
[352350105,1739052635792,-500.0,0.00010408,2]
[352350106,1739052635802,-500.0,0.00010408,2]
[352350107,1739052635812,-500.0,0.00010408,2]
[352350108,1739052635822,-500.0,0.00010408,2]
[352350109,1739052635831,-500.0,0.00010408,2]
[352350110,1739052635842,-500.0,0.00010408,2]
[352350111,1739052635852,-510.78,0.00010408,2]
[352350112,1739052635861,-523.58,0.00010408,2]
[352350113,1739052635871,-408.54,0.00010408,2]
[352350114,1739052635880,-500.0,0.00010408,2]
[352350115,1739052635890,-623.26,0.00010408,2]
[352350116,1739052635900,-500.0,0.00010408,2]
[352350117,1739052635910,-500.0,0.00010408,2]
[352350118,1739052635920,-500.0,0.00010408,2]
[352350119,1739052635929,-257.08975325,0.00010408,2]
[352350120,1739052635938,-500.0,0.00010408,2]
[352350121,1739052635948,-472.96,0.00010408,2]
[352350122,1739052635958,-500.0,0.00010408,2]
[352350123,1739052635967,-500.0,0.00010408,2]
[352350124,1739052635976,-500.0,0.00010408,2]
[352350125,1739052635985,-518.12,0.00010408,2]
[352350126,1739052635994,-500.0,0.00010408,2]
[352350127,1739052636004,-711.67,0.00010408,2]
[352350128,1739052636013,-500.0,0.00010408,2]
[352350129,1739052636024,-710.02,0.00010408,2]
[352350130,1739052636034,-500.0,0.00010408,2]
[352350131,1739052636044,-551.34,0.00010408,2]
[352350132,1739052636054,-473.2,0.00010408,2]
[352350133,1739052636064,-584.38,0.00010408,2]
[352350134,1739052636074,-500.0,0.00010408,2]
[352350135,1739052636084,-500.0,0.00010408,2]
[352350136,1739052636094,-629.39,0.00010408,2]
[352350137,1739052636103,-500.0,0.00010408,2]
[352350138,1739052636113,-500.0,0.00010408,2]
[352350139,1739052636123,-566.33,0.00010408,2]
[352350140,1739052636132,-602.17,0.00010408,2]
[352350141,1739052636142,-500.0,0.00010408,2]
[352350142,1739052636151,-500.0,0.00010408,2]
[352350143,1739052636161,-500.0,0.00010408,2]
[352350144,1739052636170,-500.0,0.00010408,2]
[352350145,1739052636180,-500.0,0.00010408,2]
[352350146,1739052636190,-648.59,0.00010408,2]
[352350147,1739052636199,-500.0,0.00010408,2]
[352350148,1739052636209,-228.46,0.00010408,2]
[352350149,1739052636218,-500.0,0.00010408,2]
[352350150,1739052636228,-1602.09,0.00010408,2]
[352350151,1739052636238,-500.0,0.00010408,2]
[352350152,1739052636247,-500.0,0.00010409,2]
[352350153,1739052636257,-451.94,0.00010409,2]
[352350154,1739052636266,-500.0,0.00010409,2]
[352350155,1739052636278,-500.0,0.00010409,2]
[352350156,1739052636288,-500.0,0.00010409,2]
[352350157,1739052636298,-500.0,0.00010409,2]
[352350158,1739052636307,-500.0,0.00010409,2]
[352350159,1739052636317,-500.0,0.00010409,2]
[352350160,1739052636327,-429.06,0.00010409,2]
[352350161,1739052636337,-500.0,0.00010409,2]
[352350162,1739052636346,-556.52,0.00010409,2]
[352350163,1739052636356,-467.5253362,0.00010409,2]
[352350164,1739052636366,-500.0,0.00010409,2]
[352350165,1739052636375,-500.0,0.00010409,2]
[352350166,1739052636384,-500.0,0.00010409,2]
[352350167,1739052636395,-500.0,0.00010409,2]
[352350168,1739052636404,-279.05331664,0.00010409,2]
[352350169,1739052636414,-500.0,0.00010409,2]
[352350170,1739052636423,-500.0,0.00010409,2]
[352350171,1739052636433,-500.0,0.00010409,2]
[352350172,1739052636442,-500.0,0.00010409,2]
[352350173,1739052636451,-500.0,0.00010409,2]
[352350174,1739052636462,-500.0,0.00010409,2]
[352350175,1739052636471,-500.0,0.00010409,2]
[352350176,1739052636480,-500.0,0.00010409,2]
[352350177,1739052636490,-500.0,0.00010409,2]
[352350178,1739052636500,-500.0,0.00010409,2]
[352350179,1739052636513,-500.0,0.00010409,2]
[352350180,1739052636525,-500.0,0.00010409,2]
[352350181,1739052636535,-500.0,0.00010409,2]
[352350182,1739052636545,-361.39424599,0.00010409,2]
[352350183,1739052636555,-480.215393,0.00010409,2]
[352350184,1739052636565,-751.71,0.00010459,2]
[352350185,1739052636574,-500.0,0.00010541,2]
[352350186,1739052636583,-500.0,0.00010541,2]
[352350187,1739052636593,-500.0,0.00010544,2]
[352350188,1739052636602,-500.0,0.00010544,2]
[352350189,1739052636612,-500.0,0.00010544,2]
[352350190,1739052636621,-500.0,0.00010544,2]
[352350191,1739052636631,-270.524272,0.00010544,2]
[352350192,1739052636641,-500.0,0.00010544,2]
[352350193,1739052636650,-276.618105,0.00010544,2]
[352350194,1739052636659,-254.42061458,0.00010544,2]
[352350195,1739052636668,-500.0,0.00010544,2]
[352350196,1739052636678,-500.0,0.00010544,2]
[352350197,1739052636688,-500.0,0.00010544,2]
[352350198,1739052636697,-593.44,0.00010544,2]
[352350199,1739052636707,-500.0,0.00010544,2]
[352350200,1739052636718,-500.0,0.00010544,2]
[352350201,1739052636727,-591.94,0.00010544,2]
[352350202,1739052636736,-669.65,0.00010544,2]
[352350203,1739052636746,-1481.84,0.00010544,2]
[352350204,1739052636756,-632.73,0.00010544,2]
[352350205,1739052636765,-577.4,0.00010544,2]
[352350206,1739052636776,-500.0,0.00010544,2]
[352350207,1739052636786,-500.0,0.00010544,2]
[352350208,1739052636795,-500.0,0.00010544,2]
[352350209,1739052636804,-901.1,0.00010544,2]
[352350210,1739052636814,-500.0,0.00010544,2]
[352350211,1739052636824,-500.0,0.00010544,2]
[352350212,1739052636833,-500.0,0.00010544,2]
[352350213,1739052636842,-556.87,0.00010544,2]
[352350214,1739052636852,-500.0,0.00010544,2]
[352350215,1739052636862,-500.0,0.00010544,2]
[352350216,1739052636872,-546.84,0.00010544,2]
[352350217,1739052636882,-500.0,0.00010544,2]
[352350218,1739052636892,-500.0,0.00010544,2]
[352350219,1739052636902,-500.0,0.00010544,2]
[352350220,1739052636912,-539.34,0.00010544,2]
[352350221,1739052636921,-550.89,0.00010544,2]
[352350222,1739052636931,-1007.48,0.00010544,2]
[352350223,1739052636941,-500.0,0.00010544,2]
[352350224,1739052636951,-528.2,0.00010544,2]
[352350225,1739052636961,-500.0,0.00010544,2]
[352350226,1739052636971,-500.0,0.00010544,2]
[352350227,1739052636981,-500.0,0.00010544,2]
[352350228,1739052636991,-500.0,0.00010544,2]
[352350229,1739052637000,-695.25,0.00010544,2]
[352350230,1739052637010,-500.0,0.00010544,2]
[352350231,1739052637020,-500.0,0.00010544,2]
[352350232,1739052637031,-500.0,0.00010544,2]
[352350233,1739052637040,-500.0,0.00010544,2]
[352350234,1739052637050,-500.0,0.00010544,2]
[352350235,1739052637060,-627.54,0.00010544,2]
[352350236,1739052637070,-630.56,0.00010544,2]
[352350237,1739052637079,-500.0,0.00010544,2]
[352350238,1739052637089,-500.0,0.00010544,2]
[352350239,1739052637098,-500.0,0.00010544,2]
[352350240,1739052637108,-500.0,0.00010544,2]
[352350241,1739052637119,-527.94,0.00010544,2]
[352350242,1739052637130,-500.0,0.00010544,2]
[352350243,1739052637140,-535.21,0.00010544,2]
[352350244,1739052637149,-500.0,0.00010545,2]
[352350245,1739052637159,-500.0,0.00010545,2]
[352350246,1739052637168,-500.0,0.00010545,2]
[352350247,1739052637178,-300.04,0.00010545,2]
[352350248,1739052637187,-500.0,0.00010545,2]
[352350249,1739052637197,-500.0,0.00010545,2]
[352350250,1739052637208,-500.0,0.00010545,2]
[352350251,1739052637220,-208.38,0.00010545,2]
[352350252,1739052637231,-500.0,0.00010545,2]
[352350253,1739052637240,-500.0,0.00010545,2]
[352350254,1739052637250,-500.0,0.00010545,2]
[352350255,1739052637260,-500.0,0.00010545,2]
[352350256,1739052637270,-500.0,0.00010545,2]
[352350257,1739052637280,-500.0,0.00010545,2]
[352350258,1739052637289,-213.27909634,0.00010545,2]
[352350259,1739052637299,-500.0,0.00010545,2]
[352350260,1739052637309,-500.0,0.00010545,2]
[352350261,1739052637318,-500.0,0.00010545,2]
[352350262,1739052637328,-500.0,0.00010545,2]
[352350263,1739052637337,-269.41,0.00010545,2]
[352350264,1739052637347,-500.0,0.00010545,2]
[352350265,1739052637357,-500.0,0.00010545,2]
[352350266,1739052637367,-528.47,0.00010545,2]
[352350267,1739052637376,-500.0,0.00010545,2]
[352350268,1739052637386,-500.0,0.00010545,2]
[352350269,1739052637396,-500.0,0.00010545,2]
[352350270,1739052637406,-500.0,0.00010545,2]
[352350271,1739052637415,-500.0,0.00010545,2]
[352350272,1739052637425,-500.0,0.00010545,2]
[352350273,1739052637434,-500.0,0.00010545,2]
[352350274,1739052637444,-500.0,0.00010545,2]
[352350275,1739052637454,-500.0,0.00010545,2]
[352350276,1739052637464,-500.0,0.00010545,2]
[352350277,1739052637473,-528.83,0.00010545,2]
[352350278,1739052637483,-500.0,0.00010545,2]
[352350279,1739052637492,-500.0,0.00010545,2]
[352350280,1739052637502,-500.0,0.00010545,2]
[352350281,1739052637514,-500.0,0.00010545,2]
[352350282,1739052637526,-500.0,0.00010545,2]
[352350283,1739052637536,-500.0,0.00010545,2]
[352350284,1739052637546,-500.0,0.00010545,2]
[352350285,1739052637556,-500.0,0.00010545,2]
[352350286,1739052637566,-500.0,0.00010545,2]
[352350288,1739052637576,-500.0,0.00010545,2]
[352350289,1739052637585,-500.0,0.00010545,2]
[352350290,1739052637596,-479.29,0.00010545,2]
[352350291,1739052637605,-500.0,0.00010545,2]
[352350292,1739052637615,-500.0,0.00010545,2]
[352350293,1739052637625,-500.0,0.00010545,2]
[352350294,1739052637634,-500.0,0.00010545,2]
[352350295,1739052637644,-500.0,0.00010545,2]
[352350296,1739052637653,-568.43,0.00010545,2]
[352350297,1739052637663,-500.0,0.00010545,2]
[352350298,1739052637673,-1376.83,0.00010545,2]
[352350299,1739052637682,-500.0,0.00010545,2]
[352350300,1739052637692,-500.0,0.00010545,2]
[352350301,1739052637702,-500.0,0.00010545,2]
[352350302,1739052637712,-500.0,0.00010545,2]
[352350303,1739052637722,-500.0,0.00010545,2]
[352350304,1739052637731,-500.0,0.00010545,2]
[352350305,1739052637741,-988.44,0.00010545,2]
[352350306,1739052637751,-500.0,0.00010545,2]
[352350307,1739052637761,-500.0,0.00010545,2]
[352350308,1739052637770,-500.0,0.00010545,2]
[352350309,1739052637782,-586.66,0.00010545,2]
[352350310,1739052637792,-500.0,0.00010545,2]
[352350311,1739052637802,-338.55069408,0.00010545,2]
[352350312,1739052637812,-500.0,0.00010545,2]
[352350313,1739052637821,-734.39,0.00010545,2]
[352350314,1739052637831,-1278.98,0.00010545,2]
[352350315,1739052637842,-500.0,0.00010545,2]
[352350316,1739052637852,-500.0,0.00010545,2]
[352350317,1739052637862,-647.74,0.00010545,2]
[352350318,1739052637873,-500.0,0.00010545,2]
[352350319,1739052637884,-500.0,0.00010545,2]
[352350320,1739052637893,-790.13,0.00010545,2]
[352350321,1739052637902,-500.0,0.00010545,2]
[352350322,1739052637911,-500.0,0.00010545,2]
[352350323,1739052637921,-863.11,0.00010545,2]
[352350324,1739052637931,-500.0,0.00010545,2]
[352350325,1739052637941,-623.51,0.00010545,2]
[352350326,1739052637952,-500.0,0.00010545,2]
[352350327,1739052637961,-500.0,0.00010545,2]
[352350328,1739052637971,-734.53,0.00010545,2]
[352350329,1739052637980,-500.0,0.00010545,2]
[352350330,1739052637990,-500.0,0.00010545,2]
[352350331,1739052638000,-532.6,0.00010545,2]
[352350332,1739052638010,-500.0,0.00010545,2]
[352350333,1739052638019,-500.0,0.00010545,2]
[352350334,1739052638030,-500.0,0.00010545,2]
[352350335,1739052638040,-500.0,0.00010545,2]
[352350336,1739052638050,-500.0,0.00010545,2]
[352350337,1739052638060,-679.9,0.00010545,2]
[352350338,1739052638070,-1071.38,0.00010545,2]
[352350339,1739052638080,-500.0,0.00010545,2]
[352350340,1739052638090,-500.0,0.00010545,2]
[352350341,1739052638099,-373.84,0.00010545,2]
[352350342,1739052638109,-500.0,0.00010545,2]
[352350343,1739052638119,-500.0,0.00010545,2]
[352350344,1739052638128,-416.1058421,0.00010545,2]
[352350345,1739052638138,-510.78,0.00010545,2]
[352350346,1739052638148,-500.0,0.00010545,2]
[352350347,1739052638158,-523.58,0.00010545,2]
[352350348,1739052638167,-623.26,0.00010545,2]
[352350349,1739052638176,-500.0,0.00010545,2]
[352350350,1739052638186,-467.48,0.00010545,2]
[352350351,1739052638195,-500.0,0.00010545,2]
[352350352,1739052638205,-500.0,0.00010545,2]
[352350353,1739052638214,-500.0,0.00010545,2]
[352350354,1739052638224,-518.12,0.00010545,2]
[352350355,1739052638234,-500.0,0.00010545,2]
[352350356,1739052638245,-711.67,0.00010545,2]
[352350359,1739052638255,-500.0,0.00010545,2]
[352350361,1739052638264,-710.02,0.00010545,2]
[352350363,1739052638275,-500.0,0.00010545,2]
[352350365,1739052638285,-551.34,0.00010545,2]
[352350367,1739052638295,-584.38,0.00010545,2]
[352350369,1739052638305,-500.0,0.00010545,2]
[352350371,1739052638314,-500.0,0.00010545,2]
[352350373,1739052638323,-629.39,0.00010545,2]
[352350375,1739052638332,-425.82,0.00010545,2]
[352350377,1739052638343,-602.17,0.00010545,2]
[352350379,1739052638352,-566.33,0.00010545,2]
[352350381,1739052638362,-500.0,0.00010545,2]
[352350383,1739052638371,-500.0,0.00010545,2]
[352350385,1739052638380,-500.0,0.00010545,2]
[352350387,1739052638390,-500.0,0.00010545,2]
[352350389,1739052638399,-648.59,0.00010545,2]
[352350391,1739052638408,-500.0,0.00010545,2]
[352350393,1739052638417,-500.0,0.00010545,2]
[352350395,1739052638426,-1602.09,0.00010545,2]
[352350397,1739052638435,-411.10216327,0.00010545,2]
[352350422,1739052638676,-88.89783673,0.00010545,2]
[352350425,1739052638685,-500.0,0.00010546,2]
[352350427,1739052638695,-500.0,0.00010546,2]
[352350428,1739052638704,-500.0,0.00010546,2]
[352350431,1739052638713,-500.0,0.00010546,2]
[352350432,1739052638722,-500.0,0.00010546,2]
[352350434,1739052638731,-500.0,0.00010546,2]
[352350436,1739052638740,-500.0,0.00010546,2]
[352350439,1739052638750,-500.0,0.00010546,2]
[352350441,1739052638759,-456.09400197,0.00010546,2]
[352350443,1739052638769,-500.0,0.00010546,2]
[352350445,1739052638778,-500.0,0.00010546,2]
[352350446,1739052638787,-290.94708006,0.00010546,2]
[352350448,1739052638796,-500.0,0.00010546,2]
[352350450,1739052638805,-500.0,0.00010546,2]
[352350453,1739052638815,-500.0,0.00010546,2]
[352350454,1739052638824,-500.0,0.00010546,2]
[352350456,1739052638833,-500.0,0.00010546,2]
[352350459,1739052638843,-500.0,0.00010546,2]
[352350460,1739052638853,-500.0,0.00010546,2]
[352350463,1739052638862,-500.0,0.00010546,2]
[352350464,1739052638873,-500.0,0.00010546,2]
[352350467,1739052638882,-500.0,0.00010546,2]
[352350469,1739052638892,-500.0,0.00010546,2]
[352350470,1739052638901,-878.68,0.00010563,2]
[352350473,1739052638911,-500.0,0.00010681,2]
[352350475,1739052638920,-500.0,0.00010681,2]
[352350477,1739052638929,-500.0,0.00010681,2]
[352350478,1739052638938,-500.0,0.00010681,2]
[352350480,1739052638947,-270.524272,0.00010681,2]
[352350482,1739052638956,-500.0,0.00010681,2]
[352350485,1739052638966,-276.618105,0.00010681,2]
[352350486,1739052638975,-500.0,0.00010681,2]
[352350488,1739052638984,-500.0,0.00010681,2]
[352350490,1739052638994,-500.0,0.00010681,2]
[352350492,1739052639003,-593.44,0.00010681,2]
[352350494,1739052639013,-500.0,0.00010681,2]
[352350496,1739052639022,-500.0,0.00010681,2]
[352350498,1739052639033,-591.94,0.00010681,2]
[352350500,1739052639043,-669.65,0.00010681,2]
[352350502,1739052639052,-1042.20870424,0.00010681,2]
[352350506,1739052639078,-439.63129576,0.00010681,2]
[352350508,1739052639087,-632.73,0.00010681,2]
[352350510,1739052639096,-577.4,0.00010681,2]
[352350512,1739052639105,-500.0,0.00010681,2]
[352350514,1739052639114,-500.0,0.00010681,2]
[352350516,1739052639123,-170.33356518,0.00010681,2]
[352350619,1739052640094,-387.92630114,0.00010407,2]
[352350622,1739052640112,-112.07369886,0.00010407,2]
[352350624,1739052640122,-500.0,0.00010408,2]
[352350626,1739052640131,-1511.52,0.00010408,2]
[352350628,1739052640140,-500.0,0.00010408,2]
[352350630,1739052640150,-500.0,0.00010544,2]
[352350632,1739052640159,-1229.56130114,0.00010545,2]
[352350910,1739052642953,-425.6,0.00010408,2]
[352350912,1739052642963,-500.0,0.00010408,2]
[352350914,1739052642972,-38.4,0.00010408,2]
[352350916,1739052642984,-461.6,0.00010408,2]
[352350918,1739052642997,-281.95869886,0.00010545,2]
[352350920,1739052643010,-164.06,0.00010545,2]
[352350922,1739052643020,-329.01331646,0.00010582,2]
[352350924,1739052643032,-329.66643482,0.00010681,2]
[352350926,1739052643048,-901.1,0.00010681,2]
[352350928,1739052643067,-99.43345613,0.00010681,2]
[352351398,1739052769347,287.23,0.0002,120]
[352351399,1739053005650,500.0,0.0002,120]
[352351472,1739053831977,-361.3473139,8.219e-05,2]
[352351473,1739053831989,-344.7426861,8.219e-05,2]
[352351474,1739053831998,-374.03819019,8.22e-05,2]
[352351475,1739053832010,-1625.96180981,8.22e-05,2]
[352351476,1739053832019,-800.0,8.22e-05,2]
[352351477,1739053832030,-1000.0,8.816e-05,2]
[352351478,1739053832040,-616.0342625,8.826e-05,2]
[352351479,1739053832049,-166.61,8.826e-05,2]
[352351480,1739053832059,-156.55,8.863e-05,2]
[352351481,1739053832068,-560.9373,8.973e-05,2]
[352351482,1739053832077,-1836.7671,8.973e-05,2]
[352351483,1739053832086,-188.33,9.272e-05,2]
[352351484,1739053832095,-150.52,9.495e-05,2]
[352351485,1739053832104,-150.52,9.498e-05,2]
[352351486,1739053832113,-150.52,9.501e-05,2]
[352351487,1739053832123,-150.52,9.505e-05,2]
[352351488,1739053832132,-150.52,9.508e-05,2]
[352351489,1739053832141,-150.52,9.512e-05,2]
[352351490,1739053832150,-150.52,9.515e-05,2]
[352351491,1739053832159,-150.52,9.518e-05,2]
[352351492,1739053832168,-150.52,9.522e-05,2]
[352351493,1739053832177,-150.52,9.525e-05,2]
[352351494,1739053832186,-150.52,9.529e-05,2]
[352351495,1739053832195,-150.52,9.532e-05,2]
[352351496,1739053832204,-150.52,9.535e-05,2]
[352351497,1739053832214,-150.52,9.539e-05,2]
[352351498,1739053832223,-150.52,9.542e-05,2]
[352351499,1739053832232,-200.0,9.572e-05,2]
[352351500,1739053832252,-2000.0,9.59e-05,2]
[352351501,1739053832261,-800.0,9.59e-05,2]
[352351502,1739053832270,-150.0,9.656e-05,2]
[352351503,1739053832280,-3080.05,9.656e-05,2]
[352351504,1739053832289,-176.95,9.715e-05,2]
[352351505,1739053832298,-1000.0,9.918e-05,2]
[352351506,1739053832307,-600.0,9.953e-05,2]
[352351507,1739053832317,-10016.74988774,0.0001,2]
[352351508,1739053832326,-168.78,0.00010022,2]
[352351509,1739053832335,-387.81,0.00010137,2]
[352351510,1739053832344,-250.0,0.0001025,2]
[352351511,1739053832354,-24943.27154164,0.00010308,2]
[352351512,1739053832363,-71278.19741978,0.00010408,2]
[352351513,1739053832372,-495.88529007,0.00010408,2]
[352351514,1739053832381,-155.08382458,0.00010408,2]
[352351515,1739053832390,-500.0,0.00010408,2]
[352351516,1739053832399,-367.00166747,0.00010408,2]
[352351517,1739053832408,-500.0,0.00010408,2]
[352351518,1739053832418,-500.0,0.00010408,2]
[352351519,1739053832427,-500.0,0.00010408,2]
[352351520,1739053832437,-500.0,0.00010408,2]
[352351521,1739053832446,-500.0,0.00010408,2]
[352351522,1739053832455,-500.0,0.00010408,2]
[352351523,1739053832465,-500.0,0.00010408,2]
[352351524,1739053832475,-500.0,0.00010408,2]
[352351525,1739053832484,-500.0,0.00010408,2]
[352351527,1739053832493,-500.0,0.00010408,2]
[352351528,1739053832502,-500.0,0.00010408,2]
[352351529,1739053832512,-500.0,0.00010408,2]
[352351530,1739053832522,-500.0,0.00010408,2]
[352351531,1739053832531,-500.0,0.00010408,2]
[352351532,1739053832540,-500.0,0.00010408,2]
[352351533,1739053832550,-500.0,0.00010408,2]
[352351534,1739053832559,-500.0,0.00010408,2]
[352351535,1739053832568,-500.0,0.00010408,2]
[352351536,1739053832577,-500.0,0.00010408,2]
[352351537,1739053832586,-500.0,0.00010408,2]
[352351538,1739053832596,-500.0,0.00010408,2]
[352351539,1739053832605,-500.0,0.00010408,2]
[352351541,1739053832614,-500.0,0.00010408,2]
[352351543,1739053832624,-500.0,0.00010408,2]
[352351545,1739053832634,-500.0,0.00010408,2]
[352351547,1739053832643,-500.0,0.00010408,2]
[352351549,1739053832652,-500.0,0.00010408,2]
[352351550,1739053832662,-500.0,0.00010408,2]
[352351551,1739053832671,-500.0,0.00010408,2]
[352351552,1739053832681,-500.0,0.00010408,2]
[352351553,1739053832692,-500.0,0.00010408,2]
[352351554,1739053832701,-500.0,0.00010408,2]
[352351555,1739053832711,-500.0,0.00010408,2]
[352351556,1739053832721,-500.0,0.00010408,2]
[352351557,1739053832730,-500.0,0.00010408,2]
[352351559,1739053832740,-612.11537017,0.00010408,2]
[352351560,1739053832749,-500.0,0.00010408,2]
[352351562,1739053832758,-500.0,0.00010408,2]
[352351563,1739053832767,-500.0,0.00010408,2]
[352351565,1739053832776,-500.0,0.00010408,2]
[352351567,1739053832786,-500.0,0.00010408,2]
[352351569,1739053832795,-500.0,0.00010408,2]
[352351571,1739053832804,-500.0,0.00010408,2]
[352351574,1739053832814,-500.0,0.00010408,2]
[352351576,1739053832824,-500.0,0.00010408,2]
[352351578,1739053832833,-534.02,0.00010408,2]
[352351579,1739053832843,-500.0,0.00010408,2]
[352351582,1739053832852,-500.0,0.00010408,2]
[352351583,1739053832861,-500.0,0.00010408,2]
[352351586,1739053832870,-500.0,0.00010408,2]
[352351587,1739053832880,-354.52761491,0.00010408,2]
[352351590,1739053832889,-500.0,0.00010408,2]
[352351592,1739053832899,-706.09,0.00010414,2]
[352351593,1739053832908,-500.0,0.00010466,2]
[352351595,1739053832918,-230.515088,0.00010542,2]
[352351598,1739053832929,-514.27,0.00010542,2]
[352351600,1739053832939,-500.0,0.00010542,2]
[352351601,1739053832950,-500.0,0.00010542,2]
[352351603,1739053832960,-500.0,0.00010542,2]
[352351605,1739053832969,-511.44,0.00010542,2]
[352351607,1739053832978,-500.0,0.00010542,2]
[352351609,1739053832987,-500.0,0.00010542,2]
[352351611,1739053832998,-500.0,0.00010542,2]
[352351613,1739053833007,-277.570726,0.00010542,2]
[352351615,1739053833016,-500.0,0.00010542,2]
[352351617,1739053833027,-500.0,0.00010542,2]
[352351619,1739053833036,-500.0,0.00010542,2]
[352351621,1739053833046,-500.0,0.00010542,2]
[352351623,1739053833056,-500.0,0.00010542,2]
[352351625,1739053833066,-500.0,0.00010542,2]
[352351627,1739053833076,-585.73,0.00010542,2]
[352351629,1739053833085,-700.75,0.00010542,2]
[352351631,1739053833094,-500.0,0.00010542,2]
[352351633,1739053833104,-540.67,0.00010542,2]
[352351635,1739053833114,-675.92,0.00010542,2]
[352351637,1739053833123,-538.17,0.00010542,2]
[352351639,1739053833132,-1541.97,0.00010542,2]
[352351641,1739053833142,-982.37,0.00010542,2]
[352351643,1739053833151,-500.0,0.00010542,2]
[352351645,1739053833161,-500.0,0.00010542,2]
[352351647,1739053833170,-500.0,0.00010542,2]
[352351649,1739053833180,-500.0,0.00010542,2]
[352351651,1739053833189,-599.48,0.00010542,2]
[352351653,1739053833199,-605.44,0.00010542,2]
[352351655,1739053833208,-500.0,0.00010542,2]
[352351657,1739053833219,-500.0,0.00010542,2]
[352351659,1739053833228,-613.6,0.00010542,2]
[352351661,1739053833238,-968.58,0.00010542,2]
[352351663,1739053833247,-500.0,0.00010542,2]
[352351665,1739053833256,-500.0,0.00010542,2]
[352351667,1739053833265,-579.16,0.00010542,2]
[352351669,1739053833274,-381.06540827,0.00010542,2]